bitfinex/quotes_BTCUSD_20241111
["timestamp","ask_amount","ask_price","bid_price","bid_amount"]
[1731308517994,0.00035074,80944.0,80943.0,0.123543]
[1731308518207,0.00035074,80944.0,80930.0,0.22594221]
[1731308518208,0.1252,80941.0,80920.0,0.00464926]
[1731308518547,0.00035074,80935.0,80932.0,0.18536941]
[1731308518778,0.00035074,80930.0,80929.0,0.1179]
[1731308518996,0.00035074,80930.0,80924.0,0.247145]
[1731308519240,0.00035074,80928.0,80925.0,0.12357]
[1731308519462,0.00035074,80928.0,80923.0,0.19014016]
[1731308519463,0.00035074,80928.0,80927.0,0.123568]
[1731308520215,0.001684,80930.0,80921.0,0.247154]
[1731308520216,0.00035074,80923.0,80921.0,0.247154]
[1731308520397,0.00035074,80923.0,80912.0,0.24718]
[1731308520398,0.1276,80922.0,80912.0,0.24718]
[1731308520605,0.1276,80922.0,80899.0,0.247221]
[1731308520606,0.00035074,80909.0,80899.0,0.247221]
[1731308520812,0.41844478,80921.0,80896.0,0.18536941]
[1731308520813,0.12395074,80906.0,80896.0,0.18536941]
[1731308521057,0.17128978,80907.0,80896.0,0.18536941]
[1731308521058,0.12395674,80902.0,80896.0,0.18536941]
[1731308521262,0.17315674,80902.0,80896.0,0.18536941]
[1731308521469,0.38159895,80902.0,80888.0,0.26420455]
[1731308521612,0.12397674,80889.0,80888.0,0.26420455]
[1731308521860,0.35052809,80889.0,80888.0,0.26420455]
[1731308522060,0.4764703,80889.0,80888.0,0.26420455]
[1731308522344,0.0556074,80889.0,80888.0,0.26420455]
[1731308522583,0.00035074,80889.0,80888.0,0.38783155]
[1731308522772,0.09210262,80899.0,80888.0,0.38783155]
[1731308522773,0.00035074,80896.0,80893.0,0.12362]
[1731308523000,0.03683609,80899.0,80891.0,0.247244]
[1731308523001,0.00035074,80899.0,80891.0,0.247244]
[1731308523192,0.07368209,80908.0,80888.0,0.26420455]
[1731308523193,0.0556074,80910.0,80892.0,0.1284144]
[1731308523400,0.00035074,80910.0,80909.0,0.123595]
[1731308524459,0.00035074,80910.0,80900.0,0.247218]
[1731308524640,0.00035074,80910.0,80884.0,0.17713078]
[1731308524641,0.00035074,80899.0,80884.0,0.000841]
[1731308524890,0.00035074,80899.0,80898.0,0.18536941]
[1731308525094,0.00035074,80899.0,80896.0,0.123614]
[1731308525222,0.00035074,80899.0,80898.0,0.123612]
[1731308525423,0.00035074,80899.0,80896.0,0.123614]
[1731308525648,0.00035074,80897.0,80896.0,0.123615]
[1731308526275,0.00035074,80903.0,80902.0,0.123606]
[1731308526528,0.0485,80916.0,80895.0,0.00247219]
[1731308526529,0.04885074,80916.0,80896.0,0.028]
[1731308526846,0.00035074,80913.0,80904.0,0.123603]
[1731308526997,0.00035074,80913.0,80902.0,0.123606]
[1731308526998,0.00035074,80903.0,80902.0,0.123606]
[1731308527161,0.00035074,80901.0,80883.0,0.347267]
[1731308527375,0.00035074,80901.0,80900.0,0.30897841]
[1731308527581,0.00035074,80901.0,80900.0,0.123609]
[1731308527962,0.00035074,80894.0,80884.0,0.248105]
[1731308528189,0.00035074,80890.0,80889.0,0.30899541]
[1731308528391,0.00035074,80893.0,80892.0,0.123621]
[1731308528598,0.00035074,80891.0,80890.0,0.370871]
[1731308528799,0.00035074,80891.0,80889.0,0.247249]
[1731308529164,0.00035074,80894.0,80893.0,0.12362]
[1731308529377,0.00035074,80894.0,80884.0,0.000841]
[1731308529604,0.00035074,80889.0,80888.0,0.38783155]
[1731308529956,0.00035074,80889.0,80888.0,0.26420455]
[1731308530553,0.12397674,80889.0,80888.0,0.26420455]
[1731308532124,0.12397674,80889.0,80888.0,0.26504655]
[1731308533239,0.00035074,80889.0,80888.0,0.26504655]
[1731308533826,0.12397674,80889.0,80888.0,0.26504655]
[1731308534225,0.00035074,80889.0,80888.0,0.26504655]
[1731308534494,0.12397674,80889.0,80888.0,0.26504655]
[1731308534681,0.00035074,80889.0,80888.0,0.26504655]
[1731308535279,0.12397674,80889.0,80888.0,0.26504655]
[1731308536350,0.00035074,80889.0,80888.0,0.26504655]
[1731308537709,0.12397674,80889.0,80888.0,0.26504655]
[1731308537880,0.50462927,80889.0,80888.0,0.26504655]
[1731308538050,0.55752927,80889.0,80888.0,0.26504655]
[1731308538253,1.35562927,80889.0,80888.0,0.26504655]
[1731308538466,1.24562927,80889.0,80888.0,0.26504655]
[1731308539117,0.86729295,80889.0,80888.0,0.26504655]
[1731308539362,0.74135074,80889.0,80888.0,0.26504655]
[1731308539937,0.74135074,80889.0,80888.0,0.38867355]
[1731308540370,0.74135074,80889.0,80888.0,0.26504655]
[1731308540925,0.86497674,80889.0,80888.0,0.26504655]
[1731308541129,0.74135074,80889.0,80888.0,0.38867355]
[1731308541331,0.74135074,80889.0,80888.0,0.26504655]
[1731308541536,0.86497674,80889.0,80888.0,0.26504655]
[1731308542017,1.11968706,80889.0,80888.0,0.26504655]
[1731308542179,1.37657148,80889.0,80888.0,0.26504655]
[1731308542384,1.25062927,80889.0,80888.0,0.26504655]
[1731308542586,0.55552927,80889.0,80888.0,0.26504655]
[1731308543416,0.04625074,80889.0,80888.0,0.26504655]
[1731308543774,0.16987674,80889.0,80888.0,0.26504655]
[1731308543969,0.04625074,80889.0,80888.0,0.26504655]
[1731308544173,0.16987674,80889.0,80888.0,0.26504655]
[1731308545032,0.34128983,80889.0,80888.0,0.26504655]
[1731308546021,0.21766383,80889.0,80888.0,0.26504655]
[1731308546206,0.04625074,80889.0,80888.0,0.38867355]
[1731308546406,0.00035074,80889.0,80888.0,0.26504655]
[1731308547253,0.12397674,80889.0,80888.0,0.26504655]
[1731308547458,0.00035074,80889.0,80888.0,0.26504655]
[1731308549086,0.00035074,80889.0,80888.0,0.38867355]
[1731308549512,0.00035074,80889.0,80888.0,0.26504655]
[1731308550278,0.00035074,80889.0,80888.0,0.38867355]
[1731308553385,0.00035074,80889.0,80888.0,0.26504655]
[1731308553763,0.00035074,80889.0,80888.0,0.38867355]
[1731308554626,0.00035074,80889.0,80888.0,0.26504655]
[1731308554848,0.00035074,80894.0,80893.0,0.12362]
[1731308555046,0.00035074,80898.0,80897.0,0.123613]
[1731308555267,0.0763,80911.0,80892.0,0.00247215]
[1731308555268,0.00035074,80902.0,80892.0,0.00247215]
[1731308555468,0.00035074,80895.0,80892.0,0.00247215]
[1731308555669,0.00035074,80895.0,80894.0,0.123618]
[1731308555845,0.00203474,80901.0,80900.0,0.123609]
[1731308556235,0.00035074,80895.0,80894.0,0.123618]
[1731308557097,0.00035074,80895.0,80888.0,0.38867355]
[1731308557098,0.00035074,80889.0,80888.0,0.38867355]
[1731308557321,0.00035074,80889.0,80888.0,0.26504655]
[1731308557322,0.12397674,80889.0,80888.0,0.26504655]
[1731308557530,0.00035074,80889.0,80888.0,0.26504655]
[1731308557930,0.00035074,80889.0,80888.0,0.38867355]
[1731308558576,0.00035074,80894.0,80891.0,0.247243]
[1731308558785,0.00035074,80894.0,80893.0,0.12362]
[1731308558986,0.00035074,80899.0,80893.0,0.12362]
[1731308559162,0.00035074,80894.0,80888.0,0.26504655]
[1731308559370,0.00035074,80894.0,80890.0,0.123624]
[1731308559594,0.00035074,80896.0,80895.0,0.123617]
[1731308559798,0.00035074,80894.0,80888.0,0.26504655]
[1731308560201,0.247207,80904.0,80888.0,0.26504655]
[1731308560202,0.00035074,80889.0,80888.0,0.38867255]
[1731308560567,0.00035074,80894.0,80893.0,0.12362]
[1731308561967,0.001684,80901.0,80888.0,0.38867355]
[1731308561968,0.00035074,80889.0,80888.0,0.38867355]
[1731308562192,0.00035074,80889.0,80888.0,0.26504655]
[1731308563523,0.03680338,80899.0,80888.0,0.26504655]
[1731308563736,0.05688907,80901.0,80888.0,0.26504655]
[1731308563737,0.00035074,80894.0,80893.0,0.12362]
[1731308565109,0.03715412,80895.0,80894.0,0.123618]
[1731308565721,0.13674439,80895.0,80894.0,0.123618]
[1731308566773,0.05577581,80895.0,80894.0,0.123618]
[1731308567189,0.00035074,80895.0,80894.0,0.123618]
[1731308567598,0.05542507,80896.0,80895.0,0.123617]
[1731308567845,0.07360676,80897.0,80896.0,0.123615]
[1731308568166,0.05542442,80897.0,80896.0,0.123615]
[1731308568298,0.05577516,80897.0,80896.0,0.123615]
[1731308568540,0.03695132,80897.0,80896.0,0.123615]
[1731308568716,0.07529076,80901.0,80896.0,0.123615]
[1731308568717,0.001684,80901.0,80900.0,0.123609]
[1731308568916,0.001684,80901.0,80900.0,0.37502295]
[1731308569125,0.001684,80901.0,80900.0,0.49045121]
[1731308569332,0.001684,80901.0,80900.0,0.57485121]
[1731308569551,0.03695132,80929.0,80925.0,0.24714]
[1731308569752,0.05896275,80930.0,80922.0,0.247151]
[1731308569753,0.04048965,80930.0,80922.0,0.247151]
[1731308569960,0.00353833,80930.0,80929.0,0.123565]
[1731308572011,0.00388907,80930.0,80929.0,0.123565]
[1731308573069,0.00388907,80930.0,80927.0,0.123568]
[1731308573070,0.00035074,80928.0,80927.0,0.123568]
[1731308574266,0.00035074,80928.0,80925.0,0.24714]
[1731308574267,0.00035074,80929.0,80920.0,0.247157]
[1731308574498,0.00035074,80928.0,80927.0,0.123567]
[1731308574940,0.00035074,80928.0,80927.0,0.123568]
[1731308575113,0.00035074,80928.0,80894.0,0.002]
[1731308575114,0.00035074,80924.0,80919.0,0.24716]
[1731308575322,0.00035074,80924.0,80923.0,0.30894341]
[1731308575479,0.00035074,80924.0,80923.0,0.123574]
[1731308576463,0.0827,80928.0,80919.0,0.24716]
[1731308576464,0.00035074,80923.0,80922.0,0.370726]
[1731308579122,0.00353833,80930.0,80929.0,0.123565]
[1731308584262,0.00035074,80927.0,80924.0,0.00472151]
[1731308584681,0.00035074,80927.0,80919.0,0.43252741]
[1731308584682,0.00035074,80927.0,80919.0,0.18536941]
[1731308584885,0.00035074,80927.0,80926.0,0.123569]
[1731308585522,0.00035074,80927.0,80919.0,0.18995346]
[1731308585736,0.00035074,80927.0,80926.0,0.123569]
[1731308585907,0.00388907,80930.0,80929.0,0.123565]
[1731308586461,0.00353833,80930.0,80929.0,0.123565]
[1731308587122,0.00353833,80930.0,80929.0,0.239005]
[1731308589090,0.00353833,80930.0,80929.0,0.123565]
[1731308589892,0.00353833,80930.0,80929.0,0.12830322]
[1731308590974,0.00353833,80930.0,80929.0,0.24374322]
[1731308591516,0.00353833,80930.0,80929.0,0.12830322]
[1731308593528,0.001684,80930.0,80929.0,0.12830322]
[1731308594689,0.001684,80930.0,80929.0,0.24374322]
[1731308595146,0.001684,80930.0,80929.0,0.37724543]
[1731308596826,0.001684,80930.0,80929.0,0.49268543]
[1731308598629,0.001684,80930.0,80929.0,0.49768543]
[1731308599267,0.09118274,80955.0,80933.0,0.123558]
[1731308599414,0.09118274,80955.0,80934.0,0.24894221]
[1731308599736,0.09118274,80955.0,80954.0,0.123526]
[1731308600281,0.09118274,80955.0,80952.0,0.370588]
[1731308600523,0.09118274,80955.0,80954.0,0.123526]
[1731308600850,0.09118274,80955.0,80938.0,0.18536941]
[1731308600851,0.123527,80954.0,80944.0,0.247084]
[1731308601062,0.09118274,80955.0,80950.0,0.123532]
[1731308601281,0.09118274,80955.0,80950.0,0.247066]
[1731308601510,0.09118274,80955.0,80938.0,0.18536941]
[1731308601719,0.12594221,80954.0,80939.0,0.123549]
[1731308601973,0.17141309,80942.0,80938.0,0.18536941]
[1731308602174,0.123563,80930.0,80929.0,0.18536941]
[1731308602459,0.29497609,80930.0,80929.0,0.18536941]
[1731308602860,1.5,80930.0,80919.0,0.43252741]
[1731308603066,0.247117,80934.0,80922.0,0.123574]
[1731308603067,0.123567,80928.0,80922.0,0.123574]
[1731308603277,0.123569,80927.0,80919.0,0.30894841]
[1731308603488,0.247124,80931.0,80919.0,0.30894841]
[1731308603489,0.123564,80930.0,80920.0,0.247157]
[1731308603924,0.125248,80930.0,80920.0,0.247157]
[1731308604123,0.001684,80930.0,80929.0,0.123565]
[1731308606648,0.001684,80930.0,80925.0,0.247139]
[1731308606901,0.001684,80930.0,80923.0,0.00465951]
[1731308607135,0.34148509,80924.0,80923.0,0.00465951]
[1731308607343,0.5483273,80924.0,80923.0,0.00465951]
[1731308607489,0.5483273,80924.0,80920.0,0.18536941]
[1731308607490,0.123577,80921.0,80920.0,0.18536941]
[1731308607691,0.24951921,80921.0,80920.0,0.18536941]
[1731308607893,0.24951921,80921.0,80912.0,0.123589]
[1731308607894,0.123582,80918.0,80912.0,0.123589]
[1731308608060,0.24952021,80921.0,80917.0,0.18536941]
[1731308608267,0.12594221,80921.0,80917.0,0.123582]
[1731308608662,0.8225,80924.0,80918.0,0.18536941]
[1731308608864,0.8225,80924.0,80917.0,0.247164]
[1731308608865,0.8225,80924.0,80917.0,0.247165]
[1731308609571,0.8225,80924.0,80909.0,0.1]
[1731308609977,0.946073,80924.0,80915.0,0.123585]
[1731308610149,0.8225,80924.0,80909.0,0.247191]
[1731308610360,0.123584,80917.0,80902.0,0.123606]
[1731308610562,0.17141309,80919.0,80910.0,0.18536941]
[1731308610896,0.12594221,80923.0,80905.0,0.1236]
[1731308610897,0.123589,80913.0,80905.0,0.1236]
[1731308611068,0.123593,80911.0,80908.0,0.18536941]
[1731308611312,0.247169,80916.0,80908.0,0.18536941]
[1731308611479,0.03676793,80919.0,80909.0,0.123595]
[1731308611718,0.03676793,80919.0,80908.0,0.18536941]
[1731308611719,0.247162,80919.0,80908.0,0.18536941]
[1731308611904,0.247162,80919.0,80886.0,0.328961]
[1731308611905,0.03676793,80920.0,80894.0,0.247236]
[1731308612114,0.123596,80909.0,80908.0,0.18536941]
[1731308612328,0.03676793,80915.0,80908.0,0.18536941]
[1731308612329,0.123591,80912.0,80908.0,0.18536941]
[1731308612560,0.123591,80912.0,80906.0,0.123599]
[1731308612757,0.03676793,80913.0,80904.0,0.247206]
[1731308612956,0.123592,80911.0,80901.0,0.0055412]
[1731308613167,0.123595,80910.0,80904.0,0.123603]
[1731308613382,0.03676793,80912.0,80906.0,0.123598]
[1731308613579,0.03676793,80912.0,80901.0,0.0055412]
[1731308613788,0.123594,80910.0,80902.0,0.370818]
[1731308613937,0.123593,80911.0,80902.0,0.123606]
[1731308614139,0.03676793,80913.0,80901.0,0.000842]
[1731308614373,0.205406,80902.0,80901.0,0.000842]
[1731308614575,0.33134821,80902.0,80901.0,0.000842]
[1731308614798,0.54132629,80902.0,80901.0,0.000842]
[1731308614949,1.96754246,80902.0,80901.0,0.000842]
[1731308615159,0.46754246,80902.0,80901.0,0.000842]
[1731308615885,1.96754246,80902.0,80901.0,0.000842]
[1731308616091,1.88664154,80902.0,80901.0,0.000842]
[1731308616683,0.123618,80894.0,80891.0,0.18536941]
[1731308619029,0.123618,80894.0,80884.0,0.000841]
[1731308619467,0.123618,80894.0,80885.0,0.123632]
[1731308619933,0.123618,80894.0,80889.0,0.18536941]
[1731308620629,0.128612,80898.0,80892.0,0.12362]
[1731308620852,0.123618,80894.0,80889.0,0.30899441]
[1731308621026,0.12594221,80897.0,80889.0,0.18536941]
[1731308621232,0.123618,80894.0,80889.0,0.18536941]
[1731308622683,0.123615,80896.0,80889.0,0.18536941]
[1731308622895,0.123617,80895.0,80889.0,0.18536941]
[1731308623126,0.123618,80894.0,80889.0,0.18536941]
[1731308623475,0.12594221,80897.0,80889.0,0.18536941]
[1731308624017,0.123618,80894.0,80889.0,0.18536941]
[1731308624414,0.123616,80896.0,80889.0,0.30899441]
[1731308624648,0.12594221,80897.0,80889.0,0.43262041]
[1731308624820,0.123618,80895.0,80890.0,0.123624]
[1731308625449,0.24955721,80897.0,80891.0,0.123622]
[1731308625689,0.123615,80896.0,80891.0,0.123622]
[1731308626087,0.12594221,80897.0,80894.0,0.123617]
[1731308626365,0.12594221,80897.0,80889.0,0.43261841]
[1731308626600,0.12594221,80897.0,80893.0,0.124461]
[1731308626812,0.24955621,80897.0,80893.0,0.000842]
[1731308627158,0.123617,80895.0,80893.0,0.000842]
[1731308627368,0.123618,80894.0,80893.0,0.000842]
[1731308629599,0.24956021,80894.0,80893.0,0.000842]
[1731308631234,0.12594221,80894.0,80893.0,0.000842]
[1731308631435,0.818709,80900.0,80895.0,0.123616]
[1731308631662,0.818709,80900.0,80893.0,0.000842]
[1731308631663,0.7001,80900.0,80894.0,0.247237]
[1731308631864,0.7001,80900.0,80894.0,0.123617]
[1731308632129,0.123618,80894.0,80893.0,0.000842]
[1731308632523,0.48069381,80899.0,80893.0,0.000842]
[1731308632663,0.37316321,80899.0,80893.0,0.000842]
[1731308632996,0.12594221,80899.0,80893.0,0.000842]
[1731308633604,0.6951,80900.0,80896.0,0.123614]
[1731308633931,0.82104221,80900.0,80896.0,0.123614]
[1731308634336,0.12594221,80900.0,80896.0,0.123614]
[1731308634695,0.24955121,80900.0,80894.0,0.123617]
[1731308634991,0.24955121,80900.0,80893.0,0.000842]
[1731308635200,0.24955121,80900.0,80895.0,0.123616]
[1731308635438,0.24955121,80900.0,80893.0,0.248081]
[1731308635439,0.123618,80894.0,80893.0,0.000842]
[1731308635646,0.123618,80894.0,80889.0,0.18536941]
[1731308635647,0.123624,80890.0,80889.0,0.18536941]
[1731308636059,0.123626,80889.0,80888.0,0.26504655]
[1731308636465,0.17141309,80891.0,80888.0,0.26504655]
[1731308637024,0.29503609,80891.0,80888.0,0.26504655]
[1731308637219,0.17141309,80891.0,80888.0,0.26504655]
[1731308637795,0.17141309,80891.0,80888.0,0.11984999]
[1731308638539,0.17141309,80891.0,80889.0,0.123625]
[1731308638742,0.17141309,80891.0,80888.0,0.11984999]
[1731308638946,0.17141309,80891.0,80888.0,0.24347699]
[1731308639147,0.17141309,80891.0,80888.0,0.11984999]
[1731308639584,0.17141309,80891.0,80890.0,0.123624]
[1731308639995,0.12641309,80891.0,80890.0,0.123624]
[1731308640439,0.12594221,80893.0,80892.0,0.123621]
[1731308641815,0.12594221,80893.0,80890.0,0.247247]
[1731308641816,0.12594221,80893.0,80889.0,0.123624]
[1731308642024,0.12594221,80892.0,80891.0,0.123622]
[1731308642636,0.12594221,80892.0,80890.0,0.123624]
[1731308642861,0.12594221,80892.0,80888.0,0.11984999]
[1731308643075,0.12594221,80892.0,80889.0,0.123625]
[1731308643282,0.12594221,80892.0,80890.0,0.123623]
[1731308643492,0.12594221,80892.0,80888.0,0.11984999]
[1731308643703,0.12594221,80892.0,80890.0,0.123624]
[1731308644143,0.12594221,80892.0,80891.0,0.123623]
[1731308646943,0.12594221,80892.0,80888.0,0.11984999]
[1731308646944,0.286024,80892.0,80888.0,0.11984999]
[1731308647147,0.286024,80892.0,80854.0,0.005]
[1731308647148,0.133632,80885.0,80863.0,0.18536941]
[1731308647357,0.71245679,80885.0,80872.0,0.18536941]
[1731308647559,2.14477696,80885.0,80872.0,0.18536941]
[1731308648076,2.26840135,80885.0,80872.0,0.18536941]
[1731308648515,2.27140135,80885.0,80872.0,0.18536941]
[1731308649463,2.29096756,80885.0,80872.0,0.18536941]
[1731308649660,2.29100105,80885.0,80872.0,0.18536941]
[1731308650249,2.29400105,80885.0,80872.0,0.18536941]
[1731308650622,0.12365,80873.0,80872.0,0.18536941]
[1731308650809,1.1161053,80873.0,80872.0,0.18536941]
[1731308651033,0.002,80872.0,80864.0,0.000842]
[1731308651243,0.123662,80865.0,80864.0,0.000842]
[1731308651672,0.123659,80867.0,80864.0,0.000842]
[1731308651873,0.28417643,80869.0,80864.0,0.000842]
[1731308651874,0.37167509,80865.0,80864.0,0.000842]
[1731308652091,0.4976173,80865.0,80864.0,0.000842]
[1731308653811,0.70742964,80865.0,80864.0,0.000842]
[1731308654255,0.72782626,80865.0,80864.0,0.000842]
[1731308654467,0.94673935,80865.0,80864.0,0.000842]
[1731308654676,0.85461105,80865.0,80864.0,0.000842]
[1731308655631,1.52604905,80865.0,80864.0,0.000842]
[1731308656041,1.64971105,80865.0,80864.0,0.000842]
[1731308656235,1.65371105,80865.0,80864.0,0.000842]
[1731308656451,1.48229796,80865.0,80864.0,0.000842]
[1731308656855,1.49229796,80865.0,80864.0,0.001842]
[1731308657086,1.49029796,80865.0,80864.0,0.001842]
[1731308657512,1.49029796,80865.0,80864.0,0.000842]
[1731308657713,1.47621692,80865.0,80864.0,0.000842]
[1731308658057,1.50621692,80865.0,80864.0,0.002842]
[1731308658278,1.50421692,80865.0,80864.0,0.002842]
[1731308658483,1.35424337,80865.0,80864.0,0.002842]
[1731308658668,0.92564221,80865.0,80864.0,0.002842]
[1731308658886,1.1338922,80865.0,80864.0,0.002842]
[1731308659242,1.1198922,80865.0,80864.0,0.001842]
[1731308659440,1.1058922,80865.0,80864.0,0.001842]
[1731308659629,1.1198922,80865.0,80864.0,0.001842]
[1731308660038,1.1058922,80865.0,80864.0,0.000842]
[1731308660243,1.0690553,80865.0,80864.0,0.000842]
[1731308660952,1.31865951,80865.0,80864.0,0.000842]
[1731308661926,1.1927173,80865.0,80864.0,0.000842]
[1731308662618,1.22955626,80865.0,80864.0,0.000842]
[1731308662976,1.22955608,80865.0,80864.0,0.000842]
[1731308663221,1.0690553,80865.0,80864.0,0.000842]
[1731308663832,1.1927173,80865.0,80864.0,0.000842]
[1731308664036,0.4976173,80865.0,80864.0,0.000842]
[1731308664873,0.3739553,80865.0,80864.0,0.000842]
[1731308665713,0.4976173,80865.0,80864.0,0.000842]
[1731308668430,0.4986173,80865.0,80864.0,0.000842]
[1731308668852,0.4996173,80865.0,80864.0,0.000842]
[1731308669068,0.5468173,80865.0,80864.0,0.000842]
[1731308669270,0.5478173,80865.0,80864.0,0.000842]
[1731308669477,0.5488173,80865.0,80864.0,0.000842]
[1731308669947,1.51533039,80865.0,80864.0,0.000842]
[1731308670163,0.123681,80853.0,80852.0,0.18536941]
[1731308670375,0.94472321,80853.0,80852.0,0.18536941]
[1731308670827,0.94472321,80853.0,80843.0,0.30906541]
[1731308670828,0.123688,80849.0,80843.0,0.18536941]
[1731308671033,0.12594221,80848.0,80843.0,0.18536941]
[1731308671232,0.12369,80847.0,80843.0,0.18536941]
[1731308671446,0.12594221,80847.0,80843.0,0.18536941]
[1731308671656,0.12594221,80847.0,80843.0,0.123696]
[1731308672271,0.247369,80851.0,80841.0,0.005]
[1731308672272,0.123692,80846.0,80841.0,0.005]
[1731308672481,0.123692,80846.0,80837.0,0.247409]
[1731308672702,0.247383,80846.0,80841.0,0.005]
[1731308672906,0.123695,80844.0,80841.0,0.005]
[1731308673190,0.247383,80846.0,80841.0,0.005]
[1731308673191,0.123692,80846.0,80841.0,0.005]
[1731308673349,0.124692,80846.0,80841.0,0.005]
[1731308673544,0.123692,80846.0,80841.0,0.005]
[1731308673772,0.123692,80846.0,80838.0,0.248249]
[1731308673773,0.123702,80839.0,80838.0,0.000842]
[1731308673940,0.4210573,80839.0,80838.0,0.000842]
[1731308674175,0.5003573,80839.0,80838.0,0.000842]
[1731308675827,0.32894421,80839.0,80838.0,0.000842]
[1731308676058,0.20724221,80839.0,80838.0,0.000842]
[1731308676481,0.33094421,80839.0,80838.0,0.000842]
[1731308678444,0.20724221,80839.0,80838.0,0.000842]
[1731308679047,0.33094421,80839.0,80838.0,0.000842]
[1731308680221,0.20724221,80839.0,80838.0,0.000842]
[1731308681090,0.002,80839.0,80838.0,0.000842]
[1731308681279,0.002,80839.0,80838.0,0.124546]
[1731308684035,0.001,80839.0,80838.0,0.124546]
[1731308684264,0.002,80839.0,80838.0,0.124546]
[1731308684439,0.001,80839.0,80838.0,0.124546]
[1731308685016,0.001,80839.0,80838.0,0.000842]
[1731308685426,0.001,80839.0,80838.0,0.124546]
[1731308685643,0.247379,80848.0,80838.0,0.000842]
[1731308685644,0.123689,80848.0,80838.0,0.000842]
[1731308685860,0.123692,80846.0,80839.0,0.247403]
[1731308686061,0.00466819,80849.0,80838.0,0.000842]
[1731308686300,0.001,80839.0,80838.0,0.124546]
[1731308687433,0.123695,80844.0,80838.0,0.124546]
[1731308687630,0.12594221,80843.0,80838.0,0.124546]
[1731308688687,0.12594221,80843.0,80839.0,0.123702]
[1731308689070,0.12594221,80843.0,80839.0,0.247405]
[1731308689288,0.12594221,80843.0,80841.0,0.123699]
[1731308689641,0.03685066,80849.0,80847.0,0.12369]
[1731308690072,0.03685066,80849.0,80848.0,0.123688]
[1731308690268,0.03685066,80849.0,80846.0,0.247383]
[1731308690269,0.82104221,80850.0,80849.0,0.123687]
[1731308690620,0.12594221,80850.0,80849.0,0.123687]
[1731308691082,0.12594221,80850.0,80846.0,0.247383]
[1731308691083,0.6951,80853.0,80846.0,0.247383]
[1731308691238,0.6951,80853.0,80852.0,0.123682]
[1731308692396,0.6951,80853.0,80850.0,0.247371]
[1731308692602,0.05527599,80851.0,80838.0,0.000842]
[1731308692840,0.03694274,80848.0,80845.0,0.18536941]
[1731308693015,0.16288495,80847.0,80838.0,0.248249]
[1731308693269,0.123695,80844.0,80838.0,0.124544]
[1731308693470,0.12594221,80843.0,80839.0,0.123702]
[1731308693685,0.12594221,80843.0,80840.0,0.1237]
[1731308693886,0.12594221,80843.0,80838.0,0.000842]
[1731308694045,0.03694274,80841.0,80838.0,0.124545]
[1731308694244,0.03694274,80842.0,80838.0,0.124545]
[1731308694615,0.03694274,80841.0,80839.0,0.123702]
[1731308694888,0.16288495,80842.0,80839.0,0.123702]
[1731308695090,0.123701,80840.0,80838.0,0.000842]
[1731308695289,0.05543295,80841.0,80838.0,0.000842]
[1731308695447,0.03695545,80839.0,80838.0,0.000842]
[1731308695665,0.05543295,80840.0,80838.0,0.000842]
[1731308696063,0.05543295,80840.0,80838.0,0.124545]
[1731308696267,0.0369589,80839.0,80838.0,0.124545]
[1731308696469,0.05543295,80840.0,80838.0,0.124545]
[1731308696692,0.18137516,80841.0,80839.0,0.123702]
[1731308696909,0.12594221,80841.0,80839.0,0.123702]
[1731308697050,0.18137516,80841.0,80840.0,0.123701]
[1731308697272,0.18137516,80841.0,80838.0,0.124545]
[1731308697643,0.05543295,80839.0,80838.0,0.000842]
[1731308697833,0.05543295,80840.0,80838.0,0.000842]
[1731308698222,0.05543295,80840.0,80838.0,0.124545]
[1731308698674,0.12594221,80841.0,80840.0,0.123701]
[1731308698675,0.05543295,80841.0,80840.0,0.123701]
[1731308699042,0.05543295,80842.0,80841.0,0.123699]
[1731308699688,0.05543295,80842.0,80839.0,0.247402]
[1731308699689,0.05543295,80843.0,80842.0,0.123698]
[1731308700033,0.07394054,80845.0,80841.0,0.247397]
[1731308700188,0.21041248,80845.0,80844.0,0.123695]
[1731308700397,0.08283672,80846.0,80845.0,0.123693]
[1731308700784,0.21930864,80846.0,80845.0,0.123693]
[1731308701024,0.0782,80846.0,80845.0,0.123693]
[1731308701413,0.001684,80847.0,80846.0,0.128691]
[1731308702035,0.001684,80847.0,80846.0,0.133691]
[1731308703457,0.001684,80847.0,80846.0,0.13829964]
[1731308704149,0.001684,80847.0,80846.0,0.13329964]
[1731308704463,0.001684,80847.0,80846.0,0.005]
[1731308704664,0.001684,80847.0,80844.0,0.005]
[1731308704875,0.001684,80847.0,80841.0,0.123699]
[1731308705093,0.001684,80847.0,80842.0,0.123697]
[1731308705499,0.001684,80847.0,80842.0,0.247396]
[1731308705776,0.001684,80847.0,80843.0,0.247393]
[1731308705939,0.001684,80847.0,80846.0,0.123691]
[1731308706329,0.001684,80847.0,80844.0,0.123694]
[1731308706955,0.001684,80847.0,80842.0,0.005]
[1731308707407,0.001684,80847.0,80844.0,0.123694]
[1731308707598,0.001684,80847.0,80846.0,0.123691]
[1731308707772,0.001684,80847.0,80845.0,0.123692]
[1731308707976,0.001684,80847.0,80841.0,0.000842]
[1731308708187,0.123698,80842.0,80841.0,0.000842]
[1731308708387,0.24964021,80842.0,80841.0,0.000842]
[1731308708640,0.51294559,80842.0,80841.0,0.000842]
[1731308708849,0.52450786,80842.0,80841.0,0.000842]
[1731308709427,1.21960786,80842.0,80841.0,0.000842]
[1731308709649,1.34555007,80842.0,80841.0,0.000842]
[1731308710131,1.51896316,80842.0,80841.0,0.000842]
[1731308710301,0.002,80839.0,80826.0,0.0014]
[1731308710445,0.46704959,80839.0,80826.0,0.0014]
[1731308710669,2.08955261,80839.0,80826.0,0.0014]
[1731308711280,1.97861186,80839.0,80826.0,0.0014]
[1731308711482,0.123711,80833.0,80826.0,0.0014]
[1731308711704,1.48097168,80833.0,80826.0,0.0014]
[1731308711963,1.49253395,80833.0,80826.0,0.0014]
[1731308712285,0.375013,80832.0,80826.0,0.0014]
[1731308712497,0.64902286,80832.0,80826.0,0.0014]
[1731308712704,0.64900959,80832.0,80826.0,0.0014]
[1731308713275,0.002,80830.0,80826.0,0.0014]
[1731308713494,0.002,80830.0,80802.0,0.18536941]
[1731308713495,0.52484309,80821.0,80817.0,0.18536941]
[1731308713662,0.90081469,80821.0,80817.0,0.18536941]
[1731308713853,0.90081469,80821.0,80802.0,0.18536941]
[1731308713854,0.353445,80811.0,80802.0,0.18536941]